bitfinex/quotes_ETHUSD_20220117
["timestamp","ask_amount","ask_price","bid_price","bid_amount"]
[1642439112527,1.51181358,3221.7,3221.4,1.56186563]
[1642439112729,1.51181358,3221.7,3221.4,0.01292939]
[1642439112929,0.00113684,3221.8,3221.3,0.00170528]
[1642439113331,0.00113684,3221.8,3221.4,0.7759]
[1642439113730,0.00113684,3221.8,3221.5,1.1492904]
[1642439114130,2.34272036,3222.0,3221.6,20.35]
[1642439114331,3.12417234,3222.2,3221.7,20.35]
[1642439114535,3.12417234,3222.2,3221.9,0.01267041]
[1642439114779,5.16546238,3223.2,3222.0,21.12559]
[1642439114986,5.16546238,3223.2,3223.1,15.58069307]
[1642439115183,5.16546238,3223.2,3223.1,16.48999307]
[1642439115384,6.69382421,3223.7,3223.2,19.2]
[1642439115584,3.90971984,3223.4,3223.3,12.47988077]
[1642439115786,6.56965221,3224.3,3223.3,12.47988077]
[1642439115787,3.77482305,3225.2,3223.7,20.35]
[1642439115990,7.3507,3225.1,3224.8,0.01297823]
[1642439116183,7.3507,3225.1,3224.8,0.8802]
[1642439116385,7.3507,3225.1,3224.8,7.4302]
[1642439117193,7.3507,3225.1,3224.8,8.4302]
[1642439117386,7.3507,3225.1,3224.8,20.3302]
[1642439117586,7.3507,3225.1,3224.8,21.3302]
[1642439117991,9.1975131,3226.3,3225.0,20.35]
[1642439118190,1.9507859,3225.5,3225.1,1.373]
[1642439118391,4.33549977,3227.1,3225.3,20.35]
[1642439118638,4.33549977,3227.1,3225.4,6.85541402]
[1642439118838,0.01477901,3226.2,3225.4,7.15541402]
[1642439119039,0.01477901,3226.2,3225.4,1.96377826]
[1642439119241,0.03694239,3226.0,3225.5,20.35]
[1642439119438,5.54890543,3227.1,3225.8,1.14551063]
[1642439119639,0.00511581,3227.0,3225.9,0.373]
[1642439119845,0.05831659,3226.9,3225.9,0.00113685]
[1642439120040,0.05691729,3226.7,3225.9,0.00113685]
[1642439120239,0.01633182,3226.8,3225.3,0.00454739]
[1642439120439,0.00284212,3226.6,3225.0,0.00625266]
[1642439120639,0.00341054,3226.7,3225.4,4.89525834]
[1642439120841,1.16975537,3225.5,3225.4,4.89525834]
[1642439121040,1.46975537,3225.5,3225.4,4.89525834]
[1642439121441,1.76975537,3225.5,3225.4,4.89525834]
[1642439122043,0.05728387,3225.3,3225.0,0.91491087]
[1642439122275,0.05728387,3225.3,3224.1,1.59239763]
[1642439122276,0.07635519,3225.1,3224.1,1.59239763]
[1642439122482,0.27639994,3225.0,3224.1,1.59239763]
[1642439122678,0.40945226,3224.9,3224.1,1.59239763]
[1642439122875,7.15079006,3224.9,3224.1,1.59239763]
[1642439123076,0.03950437,3224.7,3224.1,1.59239763]
[1642439123277,0.373,3224.6,3224.1,1.59239763]
[1642439123478,0.77573,3224.4,3222.9,1.59239763]
[1642439123680,0.03797527,3224.2,3222.9,1.59239763]
[1642439123879,0.373,3224.2,3223.0,0.01762113]
[1642439124079,1.91809636,3224.2,3223.0,0.01762113]
[1642439124478,1.56465941,3223.4,3223.0,0.01762113]
[1642439124680,0.06941785,3223.3,3223.0,0.01762113]
[1642439124879,1.56465941,3223.4,3222.7,0.0193264]
[1642439125083,1.86465941,3223.4,3223.2,1.3278948]
[1642439125481,1.86465941,3223.4,3223.3,0.01591586]
[1642439125681,0.3,3223.4,3223.3,0.01591586]
[1642439125882,1.86465941,3223.6,3223.3,0.01591586]
[1642439126534,0.3,3223.6,3223.3,0.01591586]
[1642439126934,1.45842237,3224.5,3223.3,0.01591586]
[1642439127338,2.05842237,3224.5,3223.3,0.01591586]
[1642439128037,0.03898027,3224.1,3223.3,0.01591586]
[1642439128243,1.28006929,3224.2,3223.3,0.01591586]
[1642439128439,1.58006929,3224.2,3223.3,0.01591586]
[1642439128638,1.88006929,3224.2,3223.3,0.01591586]
[1642439129037,1.58006929,3224.2,3223.3,0.01591586]
[1642439129240,1.58006929,3224.2,3223.5,0.77537]
[1642439129641,1.58006929,3224.2,3223.6,0.01421059]
[1642439130516,0.3,3224.5,3223.8,18.11]
[1642439130709,0.3,3224.5,3224.0,0.77521]
[1642439130907,4.6867,3224.9,3224.0,0.77521]
[1642439131107,4.9867,3224.9,3224.1,0.01136847]
[1642439131306,0.03527279,3224.8,3224.1,0.01136847]
[1642439131607,1.47618525,3224.7,3224.3,1.30930438]
[1642439132006,1.47618525,3224.7,3224.4,0.0096632]
[1642439133012,0.0481276,3224.6,3224.0,3.9817053]
[1642439133208,1.77618525,3224.7,3224.0,3.9817053]
[1642439133408,0.02958692,3224.6,3224.1,0.01136847]
[1642439133636,1.37589739,3224.3,3224.1,0.01136847]
[1642439134037,0.3,3224.2,3224.1,0.01136847]
[1642439134238,0.3,3224.2,3223.8,0.01307374]
[1642439134437,1.47618525,3224.7,3223.8,0.01307374]
[1642439134636,1.77618525,3224.7,3223.8,0.01307374]
[1642439134838,0.05018093,3224.6,3223.8,0.01307374]
[1642439135237,1.24135115,3224.6,3223.8,0.01307374]
[1642439136439,0.07635519,3224.5,3223.8,0.01307374]
[1642439136641,1.24135115,3224.6,3223.8,0.01307374]
[1642439137286,1.24135115,3224.6,3223.8,0.78837374]
[1642439137686,1.77618525,3224.7,3223.9,0.01250532]
[1642439137888,0.3,3224.7,3223.9,18.12250532]
[1642439138091,4.9867,3224.9,3224.1,18.11]
[1642439138295,4.6867,3224.9,3224.2,5.80435575]
[1642439138592,4.6867,3224.9,3224.3,0.01023162]
[1642439138791,4.6867,3224.9,3224.7,1.12351892]
[1642439139092,5.95605151,3224.9,3224.8,0.0073895]
[1642439139492,6.25605151,3224.9,3224.2,3.9817053]
[1642439139691,6.25605151,3224.9,3224.3,0.78543162]
[1642439140093,6.25605151,3224.9,3224.4,0.0096632]
[1642439140294,1.5156796,3224.8,3224.4,0.0096632]
[1642439141134,1.5156796,3224.8,3224.1,0.01136847]
[1642439141738,1.5156796,3224.8,3224.3,0.77521]
[1642439142143,1.5156796,3224.8,3224.4,0.0096632]
[1642439143643,6.25605151,3224.9,3224.5,2.65427817]
[1642439144040,6.25605151,3224.9,3224.6,0.00852635]
[1642439144883,6.25605151,3224.9,3224.7,2.65427817]
[1642439145285,6.25605151,3224.9,3224.8,0.0073895]
[1642439145884,6.25605151,3224.9,3224.8,3.7073895]
[1642439145885,4.9867,3224.9,3224.8,3.7073895]
[1642439146787,4.9867,3224.9,3224.8,6.36166767]
[1642439146989,4.9867,3224.9,3224.8,2.66166767]
[1642439147389,4.9867,3224.9,3224.8,4.06077452]
[1642439147989,0.3,3224.9,3224.8,15.16077452]
[1642439148190,5.018,3225.7,3224.8,21.04597907]
[1642439148391,5.018,3225.7,3224.8,22.34230326]
[1642439148644,5.018,3225.7,3225.6,8.79342613]
[1642439148848,5.018,3225.7,3225.6,1.49342613]
[1642439149043,5.018,3225.7,3225.6,0.00284212]
[1642439149343,5.018,3225.7,3224.8,4.20434817]
[1642439149344,5.018,3225.7,3224.9,0.00682108]
[1642439149744,5.018,3225.7,3224.9,6.64280455]
[1642439149745,1.54401923,3225.0,3224.9,6.64280455]
[1642439150344,1.84401923,3225.0,3224.9,6.64280455]
[1642439150747,0.3,3225.0,3224.9,6.64280455]
[1642439150948,5.018,3225.7,3225.5,1.55027]
[1642439151348,5.018,3225.7,3225.6,0.00284212]
[1642439151747,7.99855423,3225.7,3225.6,0.00284212]
[1642439151949,20.17155423,3225.7,3225.6,0.00284212]
[1642439152145,20.17155423,3225.7,3225.1,0.77532]
[1642439152388,0.04092716,3225.5,3225.2,0.00511581]
[1642439152590,1.0,3225.6,3225.2,0.00511581]
[1642439152788,0.40944658,3225.4,3225.2,0.00511581]
[1642439152989,0.073,3225.4,3225.0,1.1198215]
[1642439153190,6.45244807,3225.7,3225.0,1.8951415]
[1642439153389,6.45244807,3225.7,3225.1,0.00568423]
[1642439154096,10.38140995,3225.7,3225.1,0.00568423]
[1642439154291,1.50233726,3225.5,3225.1,0.00568423]
[1642439154692,1.80233726,3225.5,3225.1,0.00568423]
[1642439155092,0.02952367,3225.4,3225.1,0.00568423]
[1642439155392,1.80233726,3225.5,3225.1,0.00568423]
[1642439156439,5.79032284,3225.4,3225.1,0.00568423]
[1642439156643,1.373,3225.3,3225.1,0.00568423]
[1642439156840,15.05807136,3225.2,3224.6,0.00852635]
[1642439157039,1.0,3225.1,3224.5,0.00909477]
[1642439157239,1.35023234,3224.6,3224.5,0.00909477]
[1642439157642,1.65023234,3224.6,3224.5,0.00909477]
[1642439158043,1.35023234,3224.6,3224.5,0.00909477]
[1642439158541,2.79523366,3224.6,3224.5,0.00909477]
[1642439160789,2.59523366,3224.6,3224.5,0.00909477]
[1642439161191,1.44500132,3224.6,3224.5,0.00909477]
[1642439161396,4.85564062,3224.8,3224.5,2.66359999]
[1642439161795,4.85564062,3224.8,3224.6,0.00852635]
[1642439162394,6.07985099,3224.8,3224.6,0.00852635]
[1642439162592,1.29387816,3224.7,3224.6,0.00852635]
[1642439162794,1.29387816,3224.7,3224.5,0.00909477]
[1642439164445,1.29387816,3224.7,3224.5,3.10909477]
[1642439164840,2.29387816,3224.7,3224.6,0.00852635]
[1642439165044,8.73638889,3224.7,3224.6,0.00852635]
[1642439165244,7.19534271,3224.6,3223.7,3.98098739]
[1642439165443,7.06905204,3224.5,3223.7,3.98098739]
[1642439165641,0.03229447,3224.4,3223.8,0.00454739]
[1642439165842,0.373,3224.3,3223.8,0.00454739]
[1642439166140,0.373,3224.3,3223.4,2.38935258]
[1642439166141,0.06356433,3224.0,3223.4,2.38935258]
[1642439166343,0.04880773,3223.8,3223.4,2.38935258]
[1642439166542,0.42180773,3223.8,3222.6,3.14391763]
[1642439166742,0.03602255,3223.7,3223.5,0.00170527]
[1642439166947,16.9488687,3223.6,3223.5,0.00170527]
[1642439167142,17.2488687,3223.6,3223.5,0.00170527]
[1642439167389,20.8571393,3223.6,3223.5,0.00170527]
[1642439168190,11.3,3223.5,3222.4,2.38935258]
[1642439168391,11.3,3223.5,3222.7,0.00454739]
[1642439168392,1.3489645,3223.4,3222.7,0.00454739]
[1642439168594,1.68521736,3223.4,3222.7,0.00454739]
[1642439168794,0.77608,3223.3,3222.1,0.00795793]
[1642439168996,0.77613,3223.0,3222.1,0.00795793]
[1642439169194,0.373,3222.9,3222.1,0.00795793]
[1642439169394,2.3285979,3222.8,3222.1,0.00795793]
[1642439169597,1.88578825,3222.7,3222.1,0.00795793]
[1642439169996,0.7762,3222.6,3222.1,0.00795793]
[1642439170197,0.373,3222.5,3221.6,0.01080004]
[1642439170396,0.373,3222.5,3221.7,0.77605]
[1642439170597,0.373,3222.5,3221.9,1.33406651]
[1642439170798,2.34386615,3222.9,3222.0,0.04641111]
[1642439171061,3.88181191,3223.7,3222.0,0.00852635]
[1642439171062,3.13088152,3223.1,3222.0,0.00852635]
[1642439171246,3.13088152,3223.1,3222.1,0.00795793]
[1642439171449,0.1328296,3222.5,3222.3,0.77577]
[1642439171647,0.1328296,3222.5,3222.1,0.00795793]
[1642439171847,0.1328296,3222.5,3221.2,0.01247201]
[1642439171848,3.13088152,3222.3,3221.2,5.39092821]
[1642439172047,3.13088152,3222.3,3220.9,3.7646]
[1642439172048,1.3,3222.2,3220.9,3.7646]
[1642439172249,1.3,3222.2,3221.3,0.01250532]
[1642439172250,1.673,3222.2,3221.3,0.01250532]
[1642439172849,1.31923339,3221.6,3221.3,0.01250532]
[1642439173051,1.673,3222.2,3221.3,0.01250532]
[1642439173251,4.01406847,3222.2,3221.3,0.01250532]
[1642439174151,1.37786741,3221.6,3221.3,0.01250532]
[1642439175595,1.37006796,3221.6,3221.3,0.01250532]
[1642439176196,3.35466796,3221.6,3221.3,0.01250532]
[1642439176394,2.65466796,3221.6,3221.3,0.01250532]
[1642439176594,2.65466796,3221.6,3220.7,1.59239763]
[1642439176595,1.373,3221.5,3220.9,0.01477901]
[1642439176795,1.373,3221.5,3220.7,1.59239763]
[1642439176796,1.373,3221.5,3220.8,0.01534743]
[1642439177695,1.373,3221.5,3220.9,0.03727037]
[1642439177696,0.373,3221.5,3220.9,0.03727037]
[1642439177897,2.71406847,3222.1,3220.8,0.01534743]
[1642439178096,2.71406847,3222.1,3221.0,0.01421059]
[1642439178296,0.373,3222.1,3221.6,1.45345593]
[1642439178549,3.13088152,3221.9,3221.7,0.77606]
[1642439178740,3.13088152,3221.9,3221.7,0.78629162]
[1642439178941,3.13088152,3221.9,3221.8,0.0096632]
[1642439179140,4.13088152,3221.9,3221.8,0.0096632]
[1642439179340,3.73088152,3221.9,3221.8,0.0096632]
[1642439179541,4.73088152,3221.9,3221.8,0.0096632]
[1642439179742,3.13088152,3221.9,3221.8,0.0096632]
[1642439179946,3.50388152,3222.1,3221.8,0.0096632]
[1642439180641,3.50388152,3222.1,3221.9,0.04212964]
[1642439180843,4.10388152,3222.1,3221.9,0.04212964]
[1642439181043,1.0,3222.0,3221.7,0.77606]
[1642439181442,0.973,3222.1,3221.8,0.0096632]
[1642439181643,1.973,3222.1,3221.8,0.0096632]
[1642439181842,1.973,3222.1,3221.5,1.55206]
[1642439181843,0.973,3222.1,3221.6,0.01080004]
[1642439182042,1.973,3222.1,3221.6,0.01080004]
[1642439182287,0.973,3222.1,3221.6,0.01080004]
[1642439182492,1.973,3222.1,3221.6,0.01080004]
[1642439182687,1.973,3222.1,3221.5,0.01136847]
[1642439182888,1.973,3222.1,3221.7,2.65657479]
[1642439183893,1.973,3222.1,3221.6,2.65657479]
[1642439184293,1.973,3222.1,3221.7,0.01023162]
[1642439184697,0.373,3222.1,3221.7,0.01023162]
[1642439184896,0.373,3222.1,3221.7,0.78627162]
[1642439185104,3.13088152,3222.2,3221.7,0.78627162]
[1642439186138,3.13088152,3222.2,3222.1,1.48825675]
[1642439186540,3.13088152,3222.2,3222.1,5.29621468]
[1642439187137,3.92896188,3222.6,3222.1,5.29621468]
[1642439187138,3.13088152,3222.6,3222.1,5.29621468]
[1642439187339,3.13088152,3222.6,3222.2,1.36739612]
[1642439187540,3.13088152,3222.6,3222.2,0.0073895]
[1642439187745,3.13088152,3222.6,3222.3,0.00682108]
[1642439188040,3.13088152,3222.6,3222.2,0.0073895]
[1642439189045,3.13088152,3223.0,3222.6,1.53907517]
[1642439189445,3.13088152,3223.0,3222.7,0.00454739]
[1642439190095,4.13088152,3222.9,3222.7,0.00454739]
[1642439190494,4.13088152,3222.9,3222.7,3.10454739]
[1642439190895,4.13088152,3222.9,3222.8,0.00397896]
[1642439191096,3.13088152,3222.9,3222.8,0.00397896]
[1642439191297,3.13088152,3223.1,3222.8,0.00397896]
[1642439191897,3.13088152,3223.1,3222.7,3.01304896]
[1642439192198,0.00113684,3223.0,3222.7,3.01024896]
[1642439192396,0.00113684,3223.0,3222.7,2.89754896]
[1642439192800,0.30113684,3223.0,3222.7,2.89754896]
[1642439193097,1.30113684,3223.0,3222.7,2.89754896]
[1642439193542,0.00113684,3223.0,3222.7,2.89754896]
[1642439194139,0.00113684,3223.0,3222.8,0.05496699]
[1642439194339,0.00113684,3223.0,3222.7,2.89754896]
[1642439197490,0.37413684,3223.0,3222.7,2.89754896]
[1642439197690,1.37413684,3223.0,3222.7,2.89754896]
[1642439197898,1.37413684,3223.0,3221.5,1.91542]
[1642439197899,0.01245712,3222.8,3220.8,1.55222]
[1642439198092,1.24022805,3221.2,3220.5,0.501]
[1642439198292,0.373,3221.1,3220.9,0.01080005]
[1642439198694,1.373,3221.1,3220.7,0.0119369]
[1642439199196,1.373,3221.1,3221.0,2.38935258]
[1642439199596,0.92183537,3221.2,3221.0,2.39958421]
[1642439199797,0.373,3221.1,3221.0,2.39958421]
[1642439200097,0.373,3221.1,3221.0,2.38935258]
[1642439200296,7.17490475,3221.1,3221.0,2.38935258]
[1642439200501,7.95334254,3221.1,3221.0,2.38935258]
[1642439201136,8.25334254,3221.1,3221.0,2.38935258]
[1642439201337,5.54851294,3221.1,3220.8,2.18449907]
[1642439201544,1.0,3221.0,3220.8,2.18449907]
[1642439201737,1.0,3221.0,3220.9,0.01080005]
[1642439201938,1.373,3221.0,3220.9,0.01080005]
[1642439202138,6.91349275,3221.0,3220.9,0.01080005]
[1642439202340,12.66349275,3221.0,3220.9,0.01080005]
[1642439202540,13.44003485,3221.0,3220.9,0.01080005]
[1642439202741,10.25,3220.9,3220.5,0.001]
[1642439202939,6.97803051,3220.8,3220.5,0.001]
[1642439203145,8.27803051,3220.8,3220.6,0.00170527]
[1642439203338,5.50280358,3220.7,3220.6,0.00170527]
[1642439203540,6.87580358,3220.7,3220.6,0.00170527]
[1642439204344,13.87580358,3220.7,3220.6,0.00170527]
[1642439204545,16.1982853,3220.7,3220.6,0.00170527]
[1642439205388,9.1982853,3220.7,3220.6,0.00170527]
[1642439206193,6.87580358,3220.7,3220.6,0.00170527]
[1642439206392,15.37580358,3220.7,3220.6,0.00170527]
[1642439206596,13.00388152,3220.7,3220.6,0.00170527]
[1642439207193,18.95388152,3220.7,3220.6,0.00170527]
[1642439207397,13.00388152,3220.7,3220.6,0.00170527]
[1642439207596,13.69028152,3220.7,3220.6,0.00170527]
[1642439208847,19.53570539,3220.7,3220.6,0.00170527]
[1642439209246,16.40482387,3220.7,3220.6,0.00170527]
[1642439209646,2.0594,3220.7,3220.6,3.10170527]
[1642439209845,1.373,3220.7,3220.6,3.10170527]
[1642439210046,6.05662642,3220.7,3220.6,3.10170527]
[1642439210246,15.78917949,3220.7,3220.6,3.10170527]
[1642439210446,16.78917949,3220.7,3220.6,3.10170527]
[1642439210648,16.78917949,3220.7,3220.6,0.00170527]
[1642439211059,19.55,3220.6,3220.5,0.001]
[1642439211248,31.78963665,3220.6,3220.5,0.001]
[1642439211446,32.08963665,3220.6,3220.5,0.001]
[1642439211648,0.77686,3220.0,3218.6,11.90923926]
[1642439211848,1.51019064,3219.1,3218.6,6.24955258]
[1642439212047,1.88319064,3219.1,3218.7,0.01080005]
[1642439212288,1.673,3219.1,3218.7,0.01080005]
[1642439212491,0.673,3219.1,3218.7,0.01080005]
[1642439213091,0.373,3219.1,3218.7,0.01080005]
[1642439213494,0.373,3219.1,3218.8,2.37681045]
[1642439213894,0.373,3219.1,3218.9,0.0096632]
[1642439214093,1.54487122,3219.5,3218.9,0.0096632]
[1642439214496,0.77693,3219.2,3218.9,0.0096632]
[1642439214696,0.373,3219.1,3218.9,0.0096632]
[1642439215293,0.673,3219.1,3218.9,0.0096632]
[1642439215495,0.373,3219.1,3218.9,0.0096632]
[1642439215696,0.673,3219.1,3218.9,0.0096632]
[1642439216143,3.21787122,3219.1,3218.6,0.01136847]
[1642439216347,1.0,3219.0,3218.6,0.01136847]
[1642439216544,0.373,3218.9,3218.6,0.01136847]
[1642439216741,2.84487122,3219.1,3218.4,0.01250532]
[1642439216941,0.3,3218.9,3218.4,0.01250532]
[1642439217141,1.0,3219.0,3218.4,0.01250532]
[1642439217341,0.373,3218.9,3218.7,2.37694119]
[1642439217542,0.673,3218.9,3218.7,2.37694119]
[1642439217744,1.7595,3218.9,3218.8,0.01023162]
[1642439217945,12.6595,3218.9,3218.8,0.01023162]
[1642439218144,10.3095,3218.9,3218.8,0.01023162]
[1642439218343,3.0595,3218.9,3218.8,0.01023162]
[1642439218542,2.0595,3218.9,3218.4,0.01250532]
[1642439218747,15.0246073,3218.9,3218.4,0.01250532]
[1642439219053,17.3560304,3218.9,3218.4,0.01250532]
[1642439219249,21.36803732,3218.9,3218.4,0.01250532]
[1642439219448,25.56803732,3218.9,3218.4,0.01250532]
[1642439219648,39.59803732,3218.9,3218.4,0.01250532]
[1642439219890,40.06134955,3218.9,3218.4,0.01250532]
[1642439220092,40.06294955,3218.9,3218.4,0.01250532]
[1642439220290,40.06374955,3218.9,3218.4,0.01250532]
[1642439220490,40.06454955,3218.9,3218.4,0.01250532]
[1642439220691,40.06534955,3218.9,3218.4,0.01250532]
[1642439220896,39.94454955,3218.9,3218.4,0.01250532]
[1642439221094,35.94454955,3218.9,3218.5,0.05515014]
[1642439221293,36.06534955,3218.9,3218.4,0.01250532]
[1642439221495,36.06534955,3218.9,3218.6,0.01136847]
[1642439221496,35.47803732,3218.9,3218.6,0.01136847]
[1642439221698,35.47803732,3218.9,3218.4,0.01250532]
[1642439223744,35.55454877,3218.9,3218.4,0.01250532]
[1642439224044,36.78229363,3218.9,3218.4,0.01250532]
[1642439226047,35.54254185,3218.9,3218.4,0.01250532]
[1642439226852,4.19604185,3218.9,3218.4,0.01250532]
[1642439227148,0.373,3218.9,3218.7,1.41090788]
[1642439227591,0.373,3218.9,3218.8,0.01023162]
[1642439228395,0.673,3218.9,3218.8,0.01023162]
[1642439228596,0.373,3218.9,3218.8,0.01023162]
[1642439229798,1.45005,3218.9,3218.8,0.01023162]
[1642439229997,10.3010455,3218.9,3218.8,0.01023162]
[1642439230198,11.3010455,3218.9,3218.8,0.01023162]
[1642439230399,11.3010455,3218.9,3218.4,0.01250532]
[1642439230902,23.0387455,3218.9,3218.4,0.01250532]
[1642439231343,23.3387455,3218.9,3218.4,0.01250532]
[1642439231742,27.2704423,3218.9,3218.4,0.01250532]
[1642439232141,28.43167654,3218.9,3218.4,0.01250532]
[1642439232342,30.0164852,3218.9,3218.4,0.01250532]
[1642439232540,48.1264852,3218.9,3218.4,0.01250532]
[1642439233346,38.4068852,3218.9,3218.4,0.01250532]
[1642439233749,0.9304,3218.0,3216.9,5.19882758]
[1642439233949,0.9304,3217.8,3216.9,5.19882758]
[1642439234151,2.13998255,3217.5,3217.4,0.00568423]
[1642439234351,2.51298255,3217.5,3216.9,5.19882758]
[1642439234556,2.2304,3217.4,3216.8,2.63570216]
[1642439234789,2.8704,3217.4,3216.8,2.63570216]
[1642439234992,4.4256681,3217.4,3216.8,2.63570216]
[1642439235194,0.9304,3217.0,3216.8,0.54084428]
[1642439235393,6.5813,3216.9,3216.6,0.05005]
[1642439235593,5.5864,3216.7,3216.6,0.05005]
[1642439235795,1.3034,3216.7,3216.6,0.05005]
[1642439235996,1.3034,3216.7,3216.6,20.6624909]
[1642439236394,0.3,3216.8,3216.6,20.6624909]
[1642439236596,0.673,3216.8,3216.6,20.6624909]
[1642439236796,0.673,3216.8,3216.6,21.89390406]
[1642439236797,0.3,3216.7,3216.6,21.89390406]
[1642439236996,0.673,3216.8,3216.6,21.89390406]
[1642439237199,0.673,3216.8,3216.6,21.89560933]
[1642439237396,0.673,3216.8,3216.6,21.88316843]
[1642439237695,0.373,3216.8,3216.6,22.66047843]
[1642439238555,0.0022737,3217.3,3216.6,22.66047843]
[1642439238750,0.0022737,3217.3,3216.8,0.77719]
[1642439238950,0.00170527,3217.2,3216.9,0.77719]
[1642439239350,0.00170527,3217.2,3217.0,0.06688989]
[1642439239351,0.00113685,3217.1,3217.0,0.06688989]
[1642439239550,0.00113685,3217.1,3216.9,0.77719]
[1642439239949,0.00113685,3217.1,3217.0,21.96650455]
[1642439240554,3.685e-05,3217.1,3217.0,21.96650455]
[1642439241855,3.685e-05,3217.1,3217.0,23.65759166]
[1642439244696,3.685e-05,3217.1,3217.0,22.29108711]
[1642439246947,3.685e-05,3217.1,3217.0,20.6]
[1642439247247,1.46326804,3217.1,3217.0,20.6]
[1642439247452,1.46326804,3217.1,3216.6,1.28316843]
[1642439247747,1.46326804,3217.1,3216.7,0.00223684]
[1642439247748,2.43626804,3217.1,3216.7,0.00223684]
[1642439248248,3.43626804,3217.1,3216.7,0.00223684]
[1642439248448,3.66206416,3217.1,3216.7,0.00223684]
[1642439248652,1.77748,3217.0,3216.7,0.00223684]
[1642439248850,0.373,3216.9,3216.7,0.00223684]
[1642439249050,0.673,3216.9,3216.7,0.00223684]
[1642439249451,2.86784678,3216.9,3216.7,0.00223684]
[1642439249796,1.3,3216.8,3216.7,0.00223684]
[1642439250000,1.673,3216.8,3216.7,0.00223684]
[1642439250802,2.60792852,3216.8,3216.7,6.05223684]
[1642439251002,1.60792852,3216.8,3216.7,9.15223684]
[1642439251201,2.60792852,3216.8,3216.7,9.15223684]
[1642439251601,1.30792852,3216.8,3216.7,9.15223684]
[1642439251803,1.30792852,3216.8,3216.7,14.50223684]
[1642439252001,1.30792852,3216.8,3216.7,9.15223684]
[1642439252803,1.90792852,3216.8,3216.7,9.15223684]
[1642439253003,0.673,3216.8,3216.7,9.15223684]
[1642439253647,1.673,3216.8,3216.7,9.15223684]
[1642439253849,0.673,3216.8,3216.7,9.15223684]
[1642439254046,1.60792852,3216.8,3216.7,9.15223684]
[1642439254247,1.30792852,3216.8,3216.7,9.15223684]
[1642439254648,1.30792852,3216.8,3216.7,17.75223684]
[1642439255255,1.30792852,3216.8,3216.7,19.11146254]
[1642439255648,0.373,3216.8,3216.7,20.08873597]
[1642439255850,0.373,3216.8,3216.7,10.12951027]
[1642439256650,1.30792852,3216.8,3216.7,10.12951027]
[1642439256849,1.30792852,3216.8,3216.7,4.07951027]
[1642439257050,3.36572081,3216.8,3216.7,4.07951027]
[1642439257290,4.36572081,3216.8,3216.7,4.07951027]
[1642439257490,3.36572081,3216.8,3216.7,3.10223684]
[1642439257691,3.27813211,3216.8,3216.7,8.40223684]
[1642439258093,4.27813211,3216.8,3216.7,8.40223684]
[1642439258290,3.27813211,3216.8,3216.7,3.10223684]
[1642439258494,4.27813211,3216.8,3216.7,3.10223684]
[1642439258896,5.21306063,3216.8,3216.7,3.10223684]
[1642439259496,6.53033044,3216.8,3216.7,3.10223684]
[1642439259896,8.50271833,3216.8,3216.6,0.05005]
[1642439260098,2.55549,3216.7,3216.6,0.05005]
[1642439260298,2.92849,3216.7,3216.6,0.05005]
[1642439260697,0.77769,3216.2,3216.1,1.47680832]
[1642439260897,0.373,3216.2,3216.1,5.77680832]
[1642439261143,0.373,3216.2,3216.1,5.78021887]
[1642439261345,2.90240474,3216.6,3216.1,5.78021887]
[1642439261547,2.90240474,3216.6,3216.3,0.01206619]
[1642439261551,3.27540474,3216.6,3216.3,0.01206619]
[1642439261944,3.27540474,3216.6,3216.4,0.00170527]
[1642439262548,3.27540474,3216.6,3216.4,0.07631675]
[1642439262748,3.57540474,3216.6,3216.4,0.07631675]
[1642439263053,3.87540474,3216.6,3216.5,6.00113685]
[1642439263249,5.39969269,3216.6,3216.5,6.00113685]
[1642439263648,5.39969269,3216.6,3216.5,9.03389273]
[1642439263649,6.39969269,3216.6,3216.5,9.03389273]
[1642439263849,7.17728269,3216.6,3216.5,9.03389273]
[1642439264250,5.65299474,3216.6,3216.5,5.78389273]
[1642439265599,5.65299474,3216.6,3216.5,11.23389273]
[1642439265600,4.87540474,3216.6,3216.5,11.23389273]
[1642439266395,6.39492163,3216.6,3216.5,11.23389273]
[1642439267096,4.82540474,3216.6,3216.5,5.78389273]
[1642439267799,3.82540474,3216.6,3216.5,5.78389273]
[1642439268201,6.77540474,3216.6,3216.5,5.78389273]
[1642439268401,3.19035128,3216.6,3216.5,5.7961492]
[1642439268650,3.14255128,3216.6,3216.5,20.5961492]
[1642439269448,3.14255128,3216.6,3216.5,21.64847949]
[1642439269650,1.62130474,3216.6,3216.5,21.64847949]
[1642439270051,1.52124654,3217.1,3216.7,0.09795791]
[1642439270449,0.00284212,3217.0,3216.6,20.59999526]
[1642439270854,3.65807797,3218.0,3216.6,20.59999526]
[1642439270855,2.28643193,3217.4,3216.9,0.01213808]
[1642439271050,2.28643193,3217.4,3217.0,1.37531115]
[1642439271251,0.00170527,3217.2,3217.0,2.88651608]
[1642439271450,0.00170527,3217.2,3217.0,3.66364608]
[1642439271650,0.00113685,3217.1,3217.0,3.66364608]
[1642439272052,0.00113685,3217.1,3217.0,4.71597637]
[1642439272497,3.685e-05,3217.1,3217.0,23.94066522]
[1642439273703,2.28643193,3217.8,3217.1,20.2]
[1642439273907,2.28643193,3217.8,3217.1,23.3082631]
[1642439274106,0.00341054,3217.7,3217.1,23.3082631]
[1642439274303,2.92646237,3218.0,3217.2,20.6]
[1642439274504,3.65807797,3218.5,3217.7,20.6]
[1642439274709,3.685e-05,3217.9,3217.7,21.7065]
[1642439274905,3.65807797,3218.5,3218.4,8.77344486]
[1642439275205,1.90804193,3218.6,3218.5,12.08848669]
[1642439275504,1.91202089,3218.6,3218.5,12.08848669]
[1642439275704,1.91202089,3218.6,3218.5,1.23848669]
[1642439276572,1.91202089,3218.6,3218.5,8.98848669]
[1642439276773,0.00397896,3218.6,3218.5,8.98848669]
[1642439276972,0.30397896,3218.6,3218.5,8.98848669]
[1642439277172,0.00397896,3218.6,3218.5,8.98848669]
[1642439278573,0.00397896,3218.6,3218.5,1.23848669]
[1642439278974,2.01306941,3218.6,3217.7,0.77711]
[1642439279175,2.01306941,3218.6,3217.1,3.7405]
[1642439279176,4.81374886,3218.5,3217.1,5.29482]
[1642439279375,0.373,3218.4,3217.1,5.29482]
[1642439279574,1.75235356,3218.4,3217.5,0.00227369]
[1642439279795,0.00227369,3218.3,3217.4,1.20023533]
[1642439279996,0.37527369,3218.3,3217.5,1.16425003]
[1642439280297,0.00170527,3218.2,3217.6,0.00170527]
[1642439280700,0.00113684,3218.1,3217.6,0.00170527]
[1642439281101,0.00170527,3218.2,3217.6,0.00170527]
[1642439281497,1.70000664,3218.3,3217.6,0.00170527]
[1642439281498,0.00113684,3218.1,3217.6,0.00170527]